Cogmind - Beta 16 @@@ ROGUE MODE // 2026.02.02 @ 12:36:37 Player: robotix Result: Destroyed by A2-328(R) with Subdweller Machine Gun Performance ------------- Evolutions (0) 0 Regions Visited (3) 600 Robots Destroyed (27) 135 Value Destroyed (469) 469 Prototype IDs (2) 40 Alien Tech Used (0) 0 Bonus (60) 60 TOTAL SCORE: 1304 Bonus ------- Follower Combat Kills 60 Cogmind --------- Core Integrity 0/250 Matter 300/300 Energy 250/250 System Corruption 3% Temperature Cool (0) Movement Hovering (56) Location -10/Subcaves Parts ------- > --- POWER (1) -------- Ion Engine > --- PROPULSION (2) --- Hover Unit Hover Unit > --- UTILITY (2) ------ Improved Heat Sink Small Storage Unit > --- WEAPON (2) ------- Mining Laser > --- INVENTORY (8) ---- High-capacity Battery (250) Scrap Shield Beam Cannon Subdweller Shrapnel Launcher Datajack Ripper Peak State ------------ > --- POWER ------------ Light Ion Engine > --- PROPULSION ------- Hover Unit Hover Unit > --- UTILITY ---------- Improved Heat Sink Small Storage Unit > --- WEAPON ----------- Medium Laser Small Laser > --- INVENTORY -------- Ion Engine Aluminum Leg Aluminum Leg Hover Unit High-capacity Battery EM Pulse Gun Grenade Launcher Mining Laser [Rating: 9] Favorites ----------- Power Ion Engine Engine Ion Engine Propulsion Hover Unit Leg Aluminum Leg Hover Unit Hover Unit Utility Small Storage Unit Device Improved Heat Sink Storage Small Storage Unit Weapon Medium Laser Energy Gun Medium Laser Energy Cannon Beam Cannon Launcher Grenade Launcher Special Weapon Mining Laser Special Melee Weapon Datajack Build | -11 -10 -10 -10 ------- Run | Yrd Mat Min Sub Slots Evolved . | . . . . Power . | . . . . Propulsion . | . . . . Utility . | . . . . Weapon . | . . . . Parts Attached 25 | 6 17 1 1 Power 5 | 1 3 1 . Engine 5 | 1 3 1 . Core . | . . . . Reactor . | . . . . Propulsion 8 | 2 6 . . Treads . | . . . . Leg 3 | 2 1 . . Wheel . | . . . . Hover 5 | . 5 . . Flight . | . . . . Utility 4 | 1 3 . . Device 1 | . 1 . . Storage 3 | 1 2 . . Processor . | . . . . Hackware . | . . . . Protection . | . . . . Artifact . | . . . . Weapon 8 | 2 5 . 1 Energy Gun 4 | 2 2 . . Energy Cannon 1 | . 1 . . Ballistic Gun . | . . . . Ballistic Cannon . | . . . . Launcher 1 | . 1 . . Special Weapon 1 | . . . 1 Impact Weapon . | . . . . Slashing Weapon . | . . . . Piercing Weapon . | . . . . Special Melee Weapon 1 | . 1 . . Unidentified Prototypes . | . . . . Parts Lost 3 | . 2 1 . Power 1 | . . 1 . Propulsion 1 | . 1 . . Utility . | . . . . Weapon 1 | . 1 . . Highest Loss Streak 2 | . 2 1 . To Critical Strikes . | . . . . Average Backups 6 | 1 6 7 6 Power . | . 1 . . Propulsion 1 | . 1 2 . Utility . | . . 1 1 Weapon 2 | . 2 2 3 Tool/Special . | . . . . Unused Backups 4 | . . . 4 Power . | . . . . Propulsion . | . . . . Utility 1 | . . . 1 Weapon 3 | . . . 3 Tool/Special . | . . . . Average Slot Usage (%) 88 | . 89 86 84 Engine 13 | . 14 13 14 Leg 7 | . 11 . . Hover 19 | . 16 28 28 Device 8 | . 6 14 14 Storage 15 | . 16 14 14 Energy Gun 13 | . 18 8 . Energy Cannon 3 | . 4 6 . Special Weapon 2 | . . . 13 Peak Build Rating 9 | 6 9 9 9 Average Rating 7 | 3 7 8 8 On Entrance 5 | . 6 8 7 Avg Prop Armor Cover (%) . | . . . . Naked Turns . | . . . . Heaviest Build 19 | 13 19 16 12 Greatest Support 20 | 20 20 12 12 Greatest Overweight (x) 3 | 3 1 1 . Average Overweight (x) . | 1 . . . Largest Inventory Capacity 8 | 8 8 8 8 Average Capacity 7 | 7 8 8 8 Most Carried 8 | 3 8 8 8 Average Carried 6 | 1 6 7 7 Final Capacity 8 | 8 8 8 8 Final Carried 8 | 1 8 8 7 Class Distribution -------------------- 84% | Mutant 15% | Scavenger-Mutant Dominant Class ---------------- Mutant | -10/Materials Mutant | -10/Mines Scavenger-Mutant | -10/Subcaves Resources | -11 -10 -10 -10 ----------- Run | Yrd Mat Min Sub Matter Collected 675 | 99 441 44 91 Remotely . | . . . . Salvage Created 828 | . 795 33 . Parts 46 | . 45 1 . Haulers Intercepted 2 | . 2 . . Recyclers Shooed 2 | . 2 . . Parts Field Recycled . | . . . . Retrieved Matter . | . . . . Parts Self-Destructed 6 | . . . 6 Prevented . | . . . . Parts Restored . | . . . . Kills | -11 -10 -10 -10 ------- Run | Yrd Mat Min Sub Combat Hostiles Destroyed 15 | . 13 2 . Guns 10 | . 8 2 . AOE 5 | . 5 . . Classes Destroyed 7 | . 7 . . Tunneler 1 | . 1 . . Hauler 2 | . 2 . . Recycler 4 | . 4 . . Operator 2 | . 2 . . Watcher 3 | . 3 . . Swarmer 8 | . 6 2 . Grunt 7 | . 7 . . Best Kill Streak 6 | . 6 2 . Combat Bots Only 3 | . 3 2 . Max Kills in Single Turn 2 | . 2 1 . Gunslinging . | . . . . Exploded 2 | . 2 . . Melee . | . . . . Uniques/NPCs Destroyed . | . . . . Combat | -11 -10 -10 -10 -------- Run | Yrd Mat Min Sub Hostile Shots Fired 79 | . 61 15 3 Missed 21 | . 14 6 1 Hits 58 | . 47 9 2 Projectile 58 | . 47 9 2 Damage Taken 776 | . 641 80 55 Core 264 | . 221 26 17 Absorbed by Shields . | . . . . Core Remaining (%) 100 | 100 . . . Volleys Fired 81 | . 71 8 2 Largest 2 | . 2 2 1 Hottest 110 | . 100 110 100 Shots Fired 143 | . 125 16 2 Gun 122 | . 114 8 . Cannon 13 | . 5 8 . Launcher 6 | . 6 . . Special 2 | . . . 2 Kinetic . | . . . . Thermal 137 | . 119 16 2 Explosive 6 | . 6 . . Electromagnetic . | . . . . Robot Hit Streak 11 | . 11 5 . Robot Miss Streak 3 | . 3 3 . Penetration Max . | . . . . Secondary Targets 1 | . 1 . . Max Gunslinging Chain 1 | . 1 . . Shots Hit Robots 86 | . 77 9 . Core Hits 44 | . 42 2 . Critical Kills . | . . . . Critical Parts Destroyed . | . . . . Critical Strikes 9 | . 8 1 . Burn 9 | . 8 1 . Melee Attacks . | . . . . Impact . | . . . . Slashing . | . . . . Piercing . | . . . . Sneak Attacks . | . . . . Combat Hostiles . | . . . . Follow-up Attacks . | . . . . Damage Inflicted 1380 | . 1257 123 . Guns 1028 | . 940 88 . Cannons 53 | . 18 35 . Explosions 299 | . 299 . . Melee . | . . . . Ramming . | . . . . Kinetic . | . . . . Thermal 1081 | . 958 123 . Explosive 299 | . 299 . . Electromagnetic . | . . . . Impact . | . . . . Slashing . | . . . . Piercing . | . . . . Highest Corruption 3 | . 3 3 3 Average Corruption 2 | . 1 3 3 Corruption Purged . | . . . . Corruption Blocked . | . . . . Effects 6 | . . 3 3 Message Errors 1 | . . 1 . Matter Fused 4 | . . 1 3 Alerts 1 | . . 1 . Overload Shots . | . . . . Overflow Damage . | . . . . Projectiles . | . . . . Explosions . | . . . . Melee . | . . . . Knockbacks . | . . . . Impact . | . . . . Kinetic . | . . . . Secondary . | . . . . Self-Inflicted Damage . | . . . . Shots . | . . . . Rammed . | . . . . Targets Rammed . | . . . . Kicked . | . . . . Crushed . | . . . . Highest Temperature 433 | . 433 68 . Average Temperature 106 | . 112 43 . Received Heat Transfer 174 | . 168 . 6 Effects 3 | . 3 . . Interference 2 | . 2 . . Matter Decay 1 | . 1 . . Siege Activations . | . . . . Martial Activations . | . . . . Shielding Activations . | . . . . Robots Disrupted . | . . . . Combat Hostiles . | . . . . Robots Corrupted . | . . . . Combat Hostiles . | . . . . Parts Fried . | . . . . Impact Corruptions . | . . . . Robots Melted . | . . . . Combat Hostiles . | . . . . Parts Melted 6 | . 6 . . Heat Transferred 3575 | . 3168 407 . Parts Sabotaged . | . . . . Parts Stolen . | . . . . Parts Stripped . | . . . . Power Chain Reactions . | . . . . Alert | -11 -10 -10 -10 ------- Run | Yrd Mat Min Sub Maximum Alert Level . | . . . . Low Security (%) 100 | 100 100 100 . Level 1 . | . . . . Level 2 . | . . . . Level 3 . | . . . . Level 4 . | . . . . Level 5 . | . . . . High Security . | . . . . Max Security . | . . . . Peak Influence 161 | . 161 76 . Initial 23 | . . 23 . Average 86 | . 101 49 . Influence Increases 545 | . 422 123 . Destroy 0b10 Robot/C 340 | . 260 80 . Destroy 0b10 Robot/NC 60 | . 60 . . Destroy Leader 80 | . 60 20 . Allied During Kill 8 | . . 8 . Successful Hack 5 | . 5 . . Disable Machine 15 | . . 15 . Destroy Structure 22 | . 22 . . Partial Spotted 15 | . 15 . . Influence Decreases 545 | . 362 157 26 Entered New Map 51 | . . 37 14 Time Decay 424 | . 342 70 12 Lost Part 30 | . 20 10 . Lost Ally 40 | . . 40 . Squads Dispatched 1 | . 1 . . Investigation . | . . . . Extermination . | . . . . Reinforcement 1 | . 1 . . Assault . | . . . . Garrison . | . . . . Intercept . | . . . . Searches Triggered . | . . . . Construction Impeded . | . . . . Haulers Reinforced . | . . . . Active Scanning Responses . | . . . . Cargo Convoy Interrupts . | . . . . Stealth | -11 -10 -10 -10 --------- Run | Yrd Mat Min Sub Distress Signals 3 | . 3 . . Communications Jammed . | . . . . Distress Signals . | . . . . Times Spotted 42 | . 25 6 11 Peak Tracking Total 7 | . 5 2 7 Tactical Retreats . | . . . . Traps | -11 -10 -10 -10 ------- Run | Yrd Mat Min Sub Traps Triggered 2 | . 2 . . Indirectly . | . . . . Trap Hack Attempts . | . . . . Triggered . | . . . . Disarmed . | . . . . Reprogrammed . | . . . . Reused . | . . . . Traps Extracted . | . . . . Installed . | . . . . Triggered . | . . . . Machines | -11 -10 -10 -10 ---------- Run | Yrd Mat Min Sub Machines Disabled 1 | . . 1 . Max in Single Turn 1 | . . 1 . Machines Repaired . | . . . . Machines Dismantled . | . . . . Machines Sabotaged . | . . . . Overloaded Fab Kills . | . . . . Hacking | -11 -10 -10 -10 --------- Run | Yrd Mat Min Sub Machines Accessed 4 | . 4 . . Terminals 4 | . 4 . . Fabricators . | . . . . Repair Stations . | . . . . Recycling Units . | . . . . Scanalyzers . | . . . . Garrison Access . | . . . . Total Hacks 10 | . 10 . . Successful 4 | . 4 . . Failed 6 | . 6 . . Catastrophic 1 | . 1 . . Database Lockouts . | . . . . Manual 2 | . 2 . . Terminals 10 | . 10 . . Fabricators . | . . . . Repair Stations . | . . . . Recycling Units . | . . . . Scanalyzers . | . . . . Garrison Access . | . . . . Terminal Hacks 4 | . 4 . . Prototype ID Bank 1 | . 1 . . Alert Level 1 | . 1 . . Maintenance Status 1 | . 1 . . Zone Layout 1 | . 1 . . Fabricator Hacks . | . . . . Repair Station Hacks . | . . . . Recycling Unit Hacks . | . . . . Scanalyzer . | . . . . Garrison Access Hacks . | . . . . Unauthorized Hacks . | . . . . Terminals . | . . . . Fabricators . | . . . . Repair Stations . | . . . . Recycling Units . | . . . . Scanalyzers . | . . . . Garrison Access . | . . . . Data Cores Recovered 1 | . 1 . . Used 1 | . 1 . . Hacking Detections 4 | . 4 . . Full Trace Events . | . . . . Feedback Events . | . . . . Feedback Blocked . | . . . . Robot Schematics Acquired . | . . . . Robots Built . | . . . . Authchips . | . . . . Time . | . . . . Total Robot Build Rating . | . . . . Part Schematics Acquired . | . . . . Parts Built . | . . . . Authchips . | . . . . Time . | . . . . Total Part Build Rating . | . . . . Part Studies Acquired . | . . . . Parts Repaired . | . . . . Time . | . . . . Parts Recycled . | . . . . Recycled Matter . | . . . . Retrieved Matter . | . . . . Retrieved Components . | . . . . Parts Scanalyzed . | . . . . Part Schematics Acquired . | . . . . Parts Damaged . | . . . . Bothacking | -11 -10 -10 -10 ------------ Run | Yrd Mat Min Sub Used RIF Installer . | . . . . Robots Hacked . | . . . . Non-combat . | . . . . Combat . | . . . . Robot Hacks Applied . | . . . . Relay Couplers Released . | . . . . Fabnet Peak Effective % . | . . . . Robots Rewired . | . . . . Allies Hacked . | . . . . Hacks Repelled . | . . . . Allies | -11 -10 -10 -10 -------- Run | Yrd Mat Min Sub Total Allies 3 | . . 3 . Largest Group 3 | . . 3 . Highest-Rated Group 40 | . . 40 . Highest-Rated Ally 16 | . . 16 . Total Orders . | . . . . Ally Attacks 38 | . . 38 . Total Damage 346 | . . 346 . Kills 7 | . . 7 . Allies Corrupted . | . . . . Allies Melted . | . . . . Intel | -11 -10 -10 -10 ------- Run | Yrd Mat Min Sub Active Infowar (turns) . | . . . . Robot Analysis Total . | . . . . Derelict Logs Recovered 3 | . . 1 2 Drone Launches . | . . . . Drone Recoveries . | . . . . Exploration | -11 -10 -10 -10 ------------- Run | Yrd Mat Min Sub Turns Passed 1264 | 78 822 148 216 Spaces Moved 1245 | 44 739 145 317 Core 20 | 20 . . . Treads . | . . . . Legs 165 | 24 141 . . Wheels . | . . . . Hover 1060 | . 598 145 317 Flight . | . . . . Fastest Speed 50 | 50 56 56 56 Average Speed 73 | 148 74 79 56 Slowest Speed 200 | 200 120 116 56 Overloaded Moves . | . . . . Propulsion Burnouts . | . . . . Robots Hopped . | . . . . Potential Cave-ins . | . . . . Cave-ins Triggered . | . . . . Exploration Rate (%) 38 | 4 97 26 25 Regions Visited 3 Branch Regions 2 Pre-discovered Areas 1 | . . . 1 Known Exits Taken 1 | . . 1 . Unknown Exits Taken 2 | 1 1 . . Scrap Searched 1 | . . . 1 Spaces Dug . | . . . . Terrain Destroyed 26 | . 26 . . Melee . | . . . . Projectile . | . . . . AOE 26 | . 26 . . Terrain Rammed . | . . . . Walls Destroyed . | . . . . Machines Disabled . | . . . . Actions | -11 -10 -10 -10 --------- Run | Yrd Mat Min Sub Total 1454 | 56 884 163 351 Wait 51 | . 25 2 24 Move 1242 | 43 738 144 317 Hop . | . . . . Pick Up 22 | 7 12 . 3 Fast Attach 3 | . 3 . . Attach 13 | 6 2 4 1 Detach 6 | . 2 4 . Swap 19 | . 18 1 . Drop 17 | . 13 . 4 Fire 81 | . 71 8 2 Melee . | . . . . Ram . | . . . . Kick . | . . . . Crush . | . . . . Escape Stasis . | . . . . Rewire . | . . . . Trap . | . . . . Miscellaneous . | . . . . Route ------- -11/Scrapyard -10/Materials (discovered 5 exits: [*Mat x3] / [*Min x2]) -10/Mines (discovered 3 exits: [*Mat x2] / *Sub) -10/Subcaves (discovered 2 exits: [*Mat x2]) History --------- Turn | Location | Event 21 | -11/Scrapyard | Discovered new exit (range 15) 79 | -11/Scrapyard | Entered Materials 314 | -10/Materials | Build established: Mutant 462 | -10/Materials | Discovered new exit (range 12) 548 | -10/Materials | Discovered new exit (range 14) 626 | -10/Materials | Core integrity fell below 50% 626 | -10/Materials | Core integrity fell below 20% 641 | -10/Materials | Discovered new exit (range 16) 697 | -10/Materials | Discovered new exit (range 16) 796 | -10/Materials | Discovered new exit (range 11) 901 | -10/Materials | Entered Mines 946 | -10/Mines | Discovered new exit (range 10) 975 | -10/Mines | Assembled infested the area 979 | -10/Mines | Assisted by bots powering up and referring to "LRC-V3" 986 | -10/Mines | Identified exit to Subcaves 1040 | -10/Mines | YI-UF0 nonchalantly dropped a Grenade Launcher on the ground 1041 | -10/Mines | Discovered new exit (range 9) 1049 | -10/Mines | Entered Subcaves 1050 | -10/Subcaves | Approached by a straggling Scientist 1098 | -10/Subcaves | Discovered new exit (range 11) 1104 | -10/Subcaves | Learned 2 Materials zone layouts 1111 | -10/Subcaves | Learned location of Recycling (-9) 1127 | -10/Subcaves | Ambushed by swarm of Subdwellers 1170 | -10/Subcaves | Shifting Twisted Machinery released Sub. Shrapnel Launcher 1170 | -10/Subcaves | Shifting Twisted Machinery released Ripper 1188 | -10/Subcaves | Discovered new exit (range 11) 1265 | -10/Subcaves | Destroyed by A2-328(R) with Subdweller Machine Gun Last Messages --------------- Found 46 Matter. D5-P6I(c): "I think it's somewhere northeast of here" Sub. Shrapnel Launcher falls loose from the Twisted Machinery. Ripper falls loose from the Twisted Machinery. Dropped Grenade Launcher. Dropped Hover Unit. Acquired Ripper. Acquired Sub. Shrapnel Launcher. Acquired 11 matter. EXIT=FOUND Acquired 5 matter. Acquired 14 matter. Acquired 13 matter. Acquired 7 matter. Acquired 6 matter. System corrupted: Matter fused (-10). Acquired 10 matter. Dropped Med. Laser. Tech Extrapolator violently self-destructs. Map ----- +----------------------------------------------------+ | ???????????????????????????????????????????????? | | ???????????????????????????????????????????????? | | ???????????????????????????????????????????????? | | ???????????????????????????????????????????????? | | ???????????????????????????????????????????????? | | ???????????????????????????????????????????????? | | ???????????????????????????????????????????????? | | ???????????????????????????????????????????????? | | ???????????????????????????????????????????????? | | ???????????????????????????????????????????????? | | ???????????????????????????????????????????????? | | ???????????????????????????????????????????????? | | ???????????????????????????????????????????????? | | ??????????????# ?"?????????????????????????????? | | ??????????????? ""?????????????????????????????? | | ???????????????? ????????????????????????????? | | ????????????????# ????????????????????????????? | | ????????????????# ???????????????????????????? | | ????????????????? ???????????????????????????? | | ?????????????????? ??????????????????????????? | | ??????????????????# ??????????#???????????????? | | ??????????????????# ????????# ???##????#####?# | | ??????????????????# ###???## ???? #### # # ? | | ??????????????????## #?### ????? # ""? | | ??????????????????# ### # #????? ??? | | ???????????????????# @## # #?????# #???? | | ???????????????????## #?????# #????? | | ????????????????????## ##???## #?????? | | ?????????????????????# ##### #???????? | | ?????????????????????# # #??????? | | ?????????????????????## ######### ##???#" | | ??????????????????????# ##???????# ## ""# | | ??????????????????????# R#???????## "#? | | ??????????????????????# ???????# "#? | | ??????????????????????## ???????# ## ""# | | ???????????????????????# ???????## ## "# | | ???????????????????????## ??????## #?### ## | | ????????????????????????## ??????# #### ####? | | ?????????????????????????? ??????## #??? | | ?????????????????????????? ??????# ##??? | | ?????????????????????????? ??????### #??? | | ??????????????????????????#?????????##### ##??? | | ?????????????????????????????????????### #???? | | ????????????????????????????????????## # #???? | | ???????????????????????????????????## ##??? | | ???????????????????????????????????# ##?? | | ???????????????????????????????????##### #?? | | ???????????????????????????????????????# #?? | | ???????????????????????????????????????# ##? | | ?????????????????????? ??????????????## #? | +----------------------------------------------------+ Best States ------------- Heat Dissipation 39 Energy Generation 10 Energy Capacity 500 Matter Stores 300 Matter Capacity 300 Sight Range 16 Terrain Scan Density 10 Evasion (%) 55 Item Schematics ----------------- None Robot Schematics ------------------ None Fabricated ------------ Nothing Repaired ---------- Nothing Studied --------- None Alien Tech Used ----------------- None Achievements -------------- I Survived The Infestation Challenges ------------ None Game ------ Seed HeatInertialSuperbattery Manual? 0 Play Time 00:21:57 Cumulative 22.5 hours Start 2026.02.01 @ 22:17:34 End 2026.02.02 @ 12:36:37 Sessions 5 Manual Loads 0 Difficulty Rogue Special Mode None Game No. 18 Rogue 18 Adventurer 0 Explorer 0 Win Type - Total 0 Types 0/0/0/0/0/0/0/0/0/0 Lore% 15 Gallery% 23 Achievement% 18 Wizard Run 0 Options --------- Layout 1 ASCII 0 Keyboard 0 Movement Mouse Keybinds 0 Fullscreen 1 Font 16/SmallcapsGlow Map View 55x38 Zoom Use 0% Tactical HUD 0 Map Filters NONE Filters NONE Steam 1 RUN: fed234e1-7061-4f5b-9140-e05de3cfc6c2